bitfinex-derivatives/quotes_BTCF0:USTF0_20230901
["timestamp","ask_amount","ask_price","bid_price","bid_amount"]
[1693561252500,0.69277219,26017.0,26016.0,0.31557458]
[1693561256199,0.69277219,26017.0,26016.0,0.001]
[1693561263218,0.69277219,26017.0,26016.0,0.1160508]
[1693561263406,0.69277219,26017.0,26016.0,0.35646339]
[1693561264014,0.69277219,26017.0,26016.0,0.32846339]
[1693561271318,0.69277219,26017.0,26013.0,0.30930107]
[1693561271522,0.27747219,26017.0,26014.0,0.24041384]
[1693561271718,0.4153,26015.0,26014.0,0.24041384]
[1693561273811,0.4173,26015.0,26014.0,0.26641384]
[1693561277119,0.4173,26015.0,26014.0,0.026]
[1693561281426,0.4173,26015.0,26014.0,0.7017147]
[1693561281427,0.002,26015.0,26014.0,0.7017147]
[1693561281625,0.002,26015.0,26014.0,1.16424023]
[1693561281927,0.002,26015.0,26014.0,1.22078861]
[1693561286429,0.4153,26016.0,26014.0,1.22078861]
[1693561286430,0.4153,26016.0,26015.0,0.00264169]
[1693561286632,0.4153,26016.0,26015.0,0.7620537]
[1693561287929,0.4153,26016.0,26015.0,0.7630537]
[1693561288424,0.4153,26016.0,26015.0,0.76403053]
[1693561290935,0.4153,26016.0,26015.0,0.70934146]
[1693561292127,0.4153,26016.0,26015.0,0.76403053]
[1693561293531,0.4153,26016.0,26015.0,0.35627067]
[1693561294432,0.4153,26016.0,26015.0,0.35427067]
[1693561294632,0.4273,26016.0,26015.0,0.35427067]
[1693561295335,0.4403,26016.0,26015.0,0.35527067]
[1693561303947,0.4403,26016.0,26015.0,0.35262898]
[1693561306342,0.593,26016.0,26015.0,0.35262898]
[1693561308550,0.593,26016.0,26015.0,0.50595283]
[1693561308747,0.593,26016.0,26015.0,0.76038969]
[1693561315557,0.593,26016.0,26015.0,0.60706584]
[1693561315756,0.593,26016.0,26015.0,0.35262898]
[1693561316461,0.593,26016.0,26015.0,0.29793991]
[1693561317253,0.593,26016.0,26015.0,0.35262898]
[1693561320070,0.593,26016.0,26015.0,0.29793991]
[1693561320360,0.593,26016.0,26015.0,0.24139153]
[1693561321958,0.593,26016.0,26015.0,0.29793991]
[1693561322466,0.65023373,26016.0,26015.0,0.29793991]
[1693561323176,0.65023373,26016.0,26015.0,0.35262898]
[1693561323574,0.65023373,26016.0,26015.0,0.45126376]
[1693561323773,0.65023373,26016.0,26015.0,0.64915122]
[1693561324570,0.65023373,26016.0,26015.0,0.49582737]
[1693561326477,0.65023373,26016.0,26015.0,0.68748218]
[1693561326677,0.65023373,26016.0,26015.0,0.49582737]
[1693561330580,0.65023373,26016.0,26015.0,0.6492663]
[1693561331979,0.65023373,26016.0,26015.0,0.24139153]
[1693561338685,0.65023373,26016.0,26015.0,0.39483046]
[1693561338891,0.65023373,26016.0,26015.0,0.64928358]
[1693561345690,0.65023373,26016.0,26015.0,0.24139153]
[1693561350199,0.593,26016.0,26015.0,0.24139153]
[1693561350496,0.025,26016.0,26015.0,1.06454728]
[1693561350898,0.025,26016.0,26015.0,1.04237383]
[1693561351084,0.41587656,26019.0,26016.0,0.33269237]
[1693561351289,0.41587656,26019.0,26018.0,0.4153]
[1693561351488,0.41587656,26019.0,26018.0,0.76692898]
[1693561352584,0.42887656,26019.0,26018.0,0.88290782]
[1693561353196,0.45187656,26019.0,26018.0,0.88490782]
[1693561354800,0.45187656,26019.0,26018.0,0.90490782]
[1693561355503,0.03657656,26019.0,26018.0,1.19768484]
[1693561355701,0.03657656,26019.0,26018.0,0.94328758]
[1693561356004,0.03657656,26019.0,26018.0,2.69290739]
[1693561359294,0.03657656,26019.0,26018.0,2.67290739]
[1693561360490,0.03657656,26019.0,26018.0,2.41850842]
[1693561360889,0.03657656,26019.0,26018.0,2.67289993]
[1693561361798,0.03657656,26019.0,26018.0,2.69289993]
[1693561362197,0.03657656,26019.0,26018.0,2.53954133]
[1693561363604,0.03657656,26019.0,26018.0,2.69252273]
[1693561366000,0.03142769,26021.0,26019.0,0.3]
[1693561366202,0.4153,26022.0,26020.0,0.88163854]
[1693561366506,0.4153,26022.0,26021.0,1.81208176]
[1693561366700,0.4153,26022.0,26021.0,1.84684982]
[1693561366900,0.4153,26023.0,26021.0,2.26214982]
[1693561367098,0.4153,26023.0,26022.0,2.33861015]
[1693561367299,0.4153,26023.0,26022.0,2.28392108]
[1693561367704,0.4153,26023.0,26022.0,2.33861015]
[1693561368607,0.4153,26023.0,26022.0,2.09821862]
[1693561369311,0.4323,26023.0,26022.0,2.10121862]
[1693561369803,0.4153,26023.0,26022.0,2.13021862]
[1693561370008,0.4163,26023.0,26022.0,2.16721862]
[1693561371303,0.4163,26023.0,26022.0,2.17221862]
[1693561371601,0.4153,26023.0,26022.0,2.13521862]
[1693561371802,0.4163,26023.0,26022.0,2.16921862]
[1693561372007,0.4163,26023.0,26022.0,2.16421862]
[1693561373207,0.001,26023.0,26022.0,2.16421862]
[1693561375900,0.001,26023.0,26022.0,2.20246785]
[1693561377010,0.4163,26023.0,26022.0,2.20246785]
[1693561380102,0.4163,26023.0,26022.0,2.20235293]
[1693561382714,0.4163,26023.0,26022.0,2.44270035]
[1693561383913,0.4163,26023.0,26022.0,2.16416393]
[1693561384307,0.4163,26023.0,26022.0,2.08775829]
[1693561384613,0.4163,26023.0,26022.0,2.20235293]
[1693561391520,0.4163,26023.0,26022.0,2.08775829]
[1693561391815,0.7907,26027.0,26025.0,0.4153]
[1693561392015,0.00384,26031.0,26026.0,1.12247183]
[1693561392221,0.02,26031.0,26030.0,1.98693475]
[1693561392409,0.02,26031.0,26030.0,3.12899821]
[1693561392719,0.02384,26031.0,26030.0,3.24361908]
[1693561393615,0.00384,26031.0,26030.0,3.24361908]
[1693561393812,0.00384,26031.0,26030.0,3.28161908]
[1693561394512,0.02384,26031.0,26030.0,3.28161908]
[1693561394717,0.00384,26031.0,26030.0,3.28161908]
[1693561395120,0.00384,26031.0,26030.0,3.29961908]
[1693561395517,0.15444,26031.0,26030.0,3.27861908]
[1693561396312,0.09677023,26031.0,26030.0,3.28245908]
[1693561396921,0.51207023,26031.0,26030.0,3.28245908]
[1693561397924,0.51207023,26031.0,26030.0,3.28238234]
[1693561398118,0.51207023,26031.0,26030.0,3.57500039]
[1693561399219,0.56875718,26031.0,26030.0,3.57500039]
[1693561401216,0.57259718,26031.0,26030.0,3.57500039]
[1693561403421,0.15729718,26031.0,26030.0,3.57500039]
[1693561404622,0.15729718,26031.0,26030.0,3.32068152]
[1693561405128,0.15729718,26031.0,26030.0,3.57499963]
[1693561405515,0.15729718,26031.0,26030.0,3.16783821]
[1693561406121,0.15729718,26031.0,26030.0,3.28231864]
[1693561408532,0.15729718,26031.0,26030.0,3.16783821]
[1693561409732,0.15729718,26031.0,26030.0,3.24415157]
[1693561417137,0.10061023,26031.0,26030.0,3.24415157]
[1693561419837,0.44577772,26032.0,26031.0,0.00384]
[1693561420039,0.44961772,26032.0,26031.0,1.63761737]
[1693561420248,0.44961772,26032.0,26031.0,3.13283821]
[1693561421038,0.44961772,26032.0,26031.0,3.13683821]
[1693561422337,0.44961772,26032.0,26031.0,3.14283821]
[1693561426943,0.03431772,26032.0,26031.0,3.14283821]
[1693561428647,0.03431772,26032.0,26031.0,3.38312024]
[1693561431046,0.03047772,26032.0,26031.0,3.38312024]
[1693561431247,0.1596,26033.0,26031.0,3.38312024]
[1693561431548,0.1596,26033.0,26032.0,1.63377737]
[1693561431754,0.1596,26033.0,26032.0,3.12899821]
[1693561434654,0.1596,26033.0,26032.0,3.13283821]
[1693561435144,0.1596,26033.0,26032.0,3.20915157]
[1693561435450,0.18981907,26033.0,26032.0,3.20915157]
[1693561435654,0.18981907,26033.0,26032.0,3.13283821]
[1693561435953,0.18981907,26033.0,26032.0,3.33818272]
[1693561436157,0.18981907,26033.0,26032.0,3.09791412]
[1693561436544,0.18981907,26033.0,26032.0,3.15260319]
[1693561436956,0.18981907,26033.0,26032.0,3.09791412]
[1693561437152,0.18981907,26033.0,26032.0,3.19077026]
[1693561438446,0.18981907,26033.0,26032.0,3.24731864]
[1693561439557,0.18981907,26033.0,26032.0,3.13608119]
[1693561440351,0.18981907,26033.0,26032.0,3.24731864]
[1693561440550,0.20981907,26033.0,26032.0,3.19262957]
[1693561440744,0.20981907,26033.0,26032.0,3.13608119]
[1693561440951,0.18981907,26033.0,26032.0,3.19077026]
[1693561441250,0.20981907,26033.0,26032.0,3.13608119]
[1693561441655,0.20981907,26033.0,26032.0,3.02160076]
[1693561441856,0.20981907,26033.0,26032.0,3.07628983]
[1693561442553,0.20981907,26033.0,26032.0,3.15289643]
[1693561443157,0.18981907,26033.0,26032.0,3.15289643]
[1693561443362,0.18981907,26033.0,26032.0,3.15289656]
[1693561443363,0.20981907,26033.0,26032.0,3.15289656]
[1693561443960,0.18981907,26033.0,26032.0,3.15289656]
[1693561444158,0.38198747,26033.0,26032.0,3.15289656]
[1693561444757,0.38198747,26033.0,26032.0,3.20944494]
[1693561445157,0.38198747,26033.0,26032.0,3.13283821]
[1693561446162,0.18981907,26033.0,26032.0,3.13280071]
[1693561449266,0.18981907,26033.0,26032.0,3.13280335]
[1693561451356,0.38198593,26033.0,26032.0,3.13280335]
[1693561452569,0.38198593,26033.0,26032.0,3.07625497]
[1693561456064,0.38198593,26033.0,26032.0,3.0215659]
[1693561457071,0.38198593,26033.0,26032.0,3.07625497]
[1693561457264,0.38198763,26033.0,26032.0,3.07625497]
[1693561458367,0.18981907,26033.0,26032.0,3.07625497]
[1693561458560,0.18981907,26033.0,26032.0,3.0177259]
[1693561458869,0.62511907,26033.0,26032.0,2.5724259]
[1693561462569,0.60511907,26033.0,26032.0,2.5724259]
[1693561466073,0.62511907,26033.0,26032.0,2.5724259]
[1693561466764,0.81730281,26033.0,26032.0,2.5724259]
[1693561470868,0.62511907,26033.0,26032.0,2.5724259]
[1693561471069,0.81730034,26033.0,26032.0,2.55801264]
[1693561471375,0.62511907,26033.0,26032.0,2.55801264]
[1693561472071,0.60511907,26033.0,26032.0,2.55801264]
[1693561472375,0.62511907,26033.0,26032.0,2.55801264]
[1693561472875,0.62511907,26033.0,26032.0,2.52901264]
[1693561476082,0.60511907,26033.0,26032.0,2.52901264]
[1693561482487,0.62511907,26033.0,26032.0,2.52901264]
[1693561484775,0.60511907,26033.0,26032.0,2.52901264]
[1693561484978,0.62511907,26033.0,26032.0,2.52901264]
[1693561487489,0.62511907,26033.0,26032.0,2.49168255]
[1693561490085,0.60511907,26033.0,26032.0,2.49168255]
[1693561492389,0.60511907,26033.0,26032.0,2.49552255]
[1693561501397,0.60511907,26033.0,26032.0,2.46472855]
[1693561503902,0.60511907,26033.0,26032.0,2.43382855]
[1693561516213,0.60511907,26033.0,26032.0,2.40242855]
[1693561516417,0.60511907,26033.0,26032.0,2.3425896]
[1693561516716,0.90511907,26033.0,26032.0,2.2575356]
[1693561516916,0.90511907,26033.0,26032.0,0.91850716]
[1693561518116,1.13573975,26033.0,26032.0,0.88724078]
[1693561518713,0.90511907,26033.0,26032.0,0.88724078]
[1693561520310,1.13573975,26033.0,26032.0,0.85604357]
[1693561528017,1.13573975,26033.0,26032.0,0.82604357]
[1693561529317,1.13573975,26033.0,26032.0,0.79552357]
[1693561529520,1.15573975,26033.0,26032.0,0.73652357]
[1693561529717,1.15573975,26033.0,26032.0,0.70515857]
[1693561530720,1.13573975,26033.0,26032.0,0.70515857]
[1693561531029,1.13573975,26033.0,26032.0,0.67515857]
[1693561532925,2.33573975,26033.0,26032.0,0.67515857]
[1693561533421,2.10511907,26033.0,26032.0,0.67515857]
[1693561533629,2.10511907,26033.0,26032.0,0.66115874]
[1693561536927,2.10511907,26033.0,26032.0,0.64615874]
[1693561546031,2.10511907,26033.0,26032.0,0.61715873]
[1693561556443,2.10511907,26033.0,26032.0,0.58596873]
[1693561570358,2.33573975,26033.0,26032.0,0.58596873]
[1693561570856,2.10511907,26033.0,26032.0,0.58596873]
[1693561573952,2.33573975,26033.0,26032.0,0.58596873]
[1693561577655,2.33573975,26033.0,26032.0,0.55520873]
[1693561577858,2.33573975,26033.0,26032.0,0.55120873]
[1693561578356,2.33573975,26033.0,26032.0,0.52120873]
[1693561579555,2.33579866,26033.0,26032.0,0.52120873]
[1693561579950,2.33579866,26033.0,26032.0,0.49045512]
[1693561580959,2.33579866,26033.0,26032.0,0.48410363]
[1693561582161,2.33579866,26033.0,26032.0,0.45910363]
[1693561585572,2.33579866,26033.0,26032.0,0.43010363]
[1693561590066,2.33579866,26033.0,26032.0,0.40110363]
[1693561590464,2.33579866,26033.0,26032.0,0.37824363]
[1693561590657,2.33579866,26033.0,26032.0,0.31769529]
[1693561590857,2.33579866,26033.0,26032.0,0.29239441]
[1693561591269,2.33579866,26033.0,26032.0,0.28855441]
[1693561591463,2.33579866,26033.0,26032.0,0.25805241]
[1693561592956,2.33579866,26033.0,26032.0,0.22805241]
[1693561593856,2.33579866,26033.0,26032.0,0.22237732]
[1693561594060,2.16075831,26033.0,26032.0,0.22237732]
[1693561594370,2.42981577,26033.0,26032.0,0.22237732]
[1693561594559,2.42981577,26033.0,26032.0,0.19011981]
[1693561595469,2.16075831,26033.0,26032.0,0.19011981]
[1693561597669,2.16075831,26033.0,26032.0,0.17473681]
[1693561599765,2.16075831,26033.0,26032.0,0.14415865]
[1693561599969,2.16075831,26033.0,26032.0,0.11415865]
[1693561603372,2.16075831,26033.0,26032.0,0.08565485]
[1693561604975,2.16075831,26033.0,26032.0,0.05565485]
[1693561606174,2.16075831,26033.0,26032.0,0.02565485]
[1693561606575,0.60384,26032.0,26031.0,0.00384]
[1693561606766,0.00384,26031.0,26030.0,0.15634]
[1693561606962,0.41914,26031.0,26030.0,0.15634]
[1693561607166,0.57964,26031.0,26030.0,0.15634]
[1693561608377,0.57964,26031.0,26030.0,0.17534]
[1693561608568,0.57964,26031.0,26030.0,0.14534]
[1693561608968,0.57964,26031.0,26030.0,0.16234]
[1693561609870,0.57964,26031.0,26030.0,0.14534]
[1693561610076,0.57964,26031.0,26030.0,0.14634]
[1693561610578,0.58464,26031.0,26030.0,0.12834]
[1693561611671,0.58464,26031.0,26030.0,0.09834]
[1693561614480,0.5808,26031.0,26030.0,0.09834]
[1693561631289,0.5808,26031.0,26030.0,0.06934001]
[1693561631696,0.58464,26031.0,26030.0,0.06934001]
[1693561637397,0.58464,26031.0,26030.0,0.04034001]
[1693561639196,0.81519036,26031.0,26030.0,0.04034001]
[1693561645103,0.81519036,26031.0,26030.0,0.00989001]
[1693561646208,0.58464,26031.0,26030.0,0.00989001]
[1693561647703,0.58464,26031.0,26030.0,0.002]
[1693561647904,0.60464,26031.0,26030.0,0.002]
[1693561648110,0.58464,26031.0,26030.0,0.002]
[1693561653522,1.78464,26031.0,26030.0,0.002]
[1693561654421,2.01519036,26031.0,26030.0,0.002]
[1693561660326,1.78464,26031.0,26030.0,0.002]
[1693561660529,2.0152794,26031.0,26030.0,0.002]
[1693561660727,2.01526974,26031.0,26030.0,0.002]
[1693561663531,0.6,26028.0,26027.0,0.10594]
[1693561663730,1.20746791,26028.0,26027.0,0.26033516]
[1693561664824,1.20746791,26028.0,26027.0,0.27633516]
[1693561665432,1.20746791,26028.0,26027.0,0.29533516]
[1693561666330,1.20746791,26028.0,26027.0,0.25633516]
[1693561666538,1.21346791,26028.0,26027.0,0.25633516]
[1693561667435,1.21346791,26028.0,26027.0,0.24033516]
[1693561667727,1.21446791,26028.0,26026.0,0.151]
[1693561667930,0.4153,26027.0,26026.0,0.171]
[1693561668125,0.4153,26027.0,26026.0,0.41133936]
[1693561668327,0.60746791,26027.0,26026.0,0.24033936]
[1693561668637,0.60746791,26027.0,26026.0,0.26033936]
[1693561668931,0.60746791,26027.0,26026.0,0.02]
[1693561669331,0.60746791,26027.0,26026.0,0.026]
[1693561669833,0.60746791,26027.0,26025.0,0.1584]
[1693561670035,0.4153,26026.0,26025.0,0.1584]
[1693561670627,0.4153,26026.0,26024.0,0.0766218]
[1693561670827,0.4153,26025.0,26024.0,0.0966218]
[1693561671834,0.4153,26025.0,26024.0,0.0766218]
[1693561672832,0.4153,26025.0,26024.0,0.13317018]
[1693561673329,0.4153,26025.0,26024.0,0.16317018]
[1693561673535,0.4153,26025.0,26024.0,0.1066218]
[1693561673729,0.4153,26025.0,26024.0,0.03]
[1693561673930,0.4163,26025.0,26024.0,0.061]
[1693561675530,1.0163,26025.0,26022.0,0.34190134]
[1693561675728,0.4153,26023.0,26022.0,0.34190134]
[1693561675928,0.4153,26023.0,26022.0,0.58226147]
[1693561676128,0.4353,26023.0,26022.0,0.31698193]
[1693561676534,0.4353,26023.0,26022.0,0.24036013]
[1693561676734,0.4353,26023.0,26022.0,0.35397743]
[1693561677038,0.4383,26023.0,26022.0,0.39097743]
[1693561677448,0.4383,26023.0,26022.0,0.31436013]
[1693561677938,0.4403,26023.0,26022.0,0.31436013]
[1693561678133,0.4403,26023.0,26022.0,0.28536013]
[1693561678339,0.4603,26023.0,26022.0,0.22477981]
[1693561679036,0.4843,26023.0,26022.0,0.18977981]
[1693561679232,0.4843,26023.0,26022.0,0.24860323]
[1693561679538,0.5213,26023.0,26022.0,0.24636844]
[1693561679728,0.5213,26023.0,26022.0,0.006]
[1693561680330,0.5293,26023.0,26022.0,0.006]
[1693561680529,0.5093,26023.0,26022.0,0.24636508]
[1693561680936,0.5093,26023.0,26022.0,0.006]
[1693561681131,0.5293,26023.0,26022.0,0.006]
[1693561681644,0.5093,26023.0,26022.0,0.006]
[1693561682041,0.5293,26023.0,26022.0,0.006]
[1693561683643,0.5093,26023.0,26022.0,0.006]
[1693561684238,0.5293,26023.0,26022.0,0.006]
[1693561685845,0.5093,26023.0,26022.0,0.006]
[1693561688142,0.56805852,26023.0,26022.0,0.006]
[1693561704166,0.56805852,26023.0,26022.0,0.24636666]
[1693561705173,0.54805852,26023.0,26022.0,0.24636666]
[1693561705472,0.56805852,26023.0,26022.0,0.24636666]
[1693561706774,0.56805852,26023.0,26022.0,0.006]
[1693561713785,1.76805852,26023.0,26022.0,0.006]
[1693561715375,1.93205852,26023.0,26022.0,0.006]
[1693561719388,0.6,26022.0,26021.0,0.03328206]
[1693561719688,1.0353,26022.0,26021.0,0.03328206]
[1693561720079,1.0153,26022.0,26021.0,0.03328206]
[1693561720279,1.0353,26022.0,26021.0,0.03328206]
[1693561720583,1.0353,26022.0,26021.0,0.00218206]
[1693561721580,1.0353,26022.0,26020.0,0.3067436]
[1693561721783,0.567,26021.0,26020.0,0.3067436]
[1693561722085,0.567,26021.0,26020.0,0.54710896]
[1693561722293,0.567,26021.0,26020.0,0.64801166]
[1693561722788,0.567,26021.0,26020.0,0.65101166]
[1693561722989,0.595,26021.0,26020.0,0.65301166]
[1693561724682,0.595,26021.0,26020.0,0.65001166]
[1693561724888,0.631,26021.0,26020.0,0.65301166]
[1693561725293,0.631,26021.0,26020.0,0.70956004]
[1693561726594,0.631,26021.0,26020.0,0.65301166]
[1693561726795,0.631,26021.0,26020.0,0.64762036]
[1693561727196,0.631,26021.0,26020.0,0.70416874]
[1693561727497,0.651,26021.0,26020.0,0.70416874]
[1693561727893,0.631,26021.0,26020.0,0.70416874]
[1693561728395,0.631,26021.0,26020.0,0.64762036]
[1693561728599,0.651,26021.0,26020.0,0.36043652]
[1693561728994,0.651,26021.0,26020.0,0.37623652]
[1693561729194,0.651,26021.0,26020.0,0.13587116]
[1693561729388,0.651,26021.0,26020.0,0.37623644]
[1693561729695,0.651,26021.0,26020.0,0.13587116]
[1693561731792,0.631,26021.0,26020.0,0.13587116]
[1693561731992,0.651,26021.0,26020.0,0.13587116]
[1693561734486,0.631,26021.0,26020.0,0.13587116]
[1693561734692,0.651,26021.0,26020.0,0.13587116]
[1693561736196,0.651,26021.0,26020.0,0.27520283]
[1693561736404,0.651,26021.0,26020.0,0.5155683]
[1693561737701,0.70774313,26021.0,26020.0,0.5155683]
[1693561737903,0.70774313,26021.0,26020.0,0.4947683]
[1693561741104,0.70774313,26021.0,26020.0,0.24036547]
[1693561741501,0.70774313,26021.0,26019.0,0.24036547]
[1693561741699,0.4153,26020.0,26019.0,0.24036547]
[1693561741899,0.4153,26020.0,26019.0,0.49477028]
[1693561742503,0.4353,26020.0,26019.0,0.60600773]
[1693561743009,0.4153,26020.0,26019.0,0.60600773]
[1693561743809,0.4503,26020.0,26019.0,0.60700773]
[1693561744304,0.4503,26020.0,26019.0,0.35460292]
[1693561745108,0.4743,26020.0,26019.0,0.29805454]
[1693561745310,0.4743,26020.0,26019.0,0.35460292]
[1693561750513,0.4743,26020.0,26019.0,0.29991385]
[1693561751303,0.4743,26020.0,26019.0,0.60900421]
[1693561754213,0.4743,26020.0,26019.0,0.55245583]
[1693561754604,0.4743,26020.0,26019.0,0.60900421]
[1693561756616,0.4743,26020.0,26019.0,0.55245583]
[1693561756813,0.4743,26020.0,26019.0,0.70583927]
[1693561757516,0.4743,26020.0,26019.0,0.76238765]
[1693561758715,0.47814,26020.0,26019.0,0.76238765]
[1693561759315,0.47814,26020.0,26019.0,0.35460292]
[1693561760514,0.47814,26020.0,26019.0,0.35985864]
[1693561763218,0.47814,26020.0,26019.0,0.24862119]
[1693561763917,0.47814,26020.0,26019.0,0.30331026]
[1693561764119,0.47814,26020.0,26019.0,0.35985864]
[1693561764814,0.47814,26020.0,26019.0,0.30516957]
[1693561765016,0.47814,26020.0,26019.0,0.35985864]
[1693561765424,0.47814,26020.0,26019.0,0.30516957]
[1693561766219,0.47814,26020.0,26019.0,0.30518125]
[1693561766418,0.47814,26020.0,26019.0,0.71296389]
[1693561766613,0.47814,26020.0,26019.0,0.76765296]
[1693561771524,0.039,26020.0,26019.0,1.04956952]
[1693561771826,0.4453507,26022.0,26020.0,0.05768356]
[1693561772027,0.4453507,26022.0,26021.0,0.8090359]
[1693561772216,0.4453507,26022.0,26021.0,1.19467255]
[1693561772416,0.4453507,26022.0,26021.0,1.19993995]
[1693561773338,0.4763507,26022.0,26021.0,1.20293995]
[1693561773540,0.5073507,26022.0,26021.0,0.79517032]
[1693561773730,0.5073507,26022.0,26021.0,0.77517032]
[1693561773932,0.5133507,26022.0,26021.0,0.93154075]
[1693561774125,0.5133507,26022.0,26021.0,0.77817032]
[1693561774331,0.4823507,26022.0,26021.0,0.77517032]
[1693561774533,0.4943507,26022.0,26021.0,0.77617032]
[1693561774732,0.4883507,26022.0,26021.0,0.77617032]
[1693561775943,0.4763507,26022.0,26021.0,0.77517032]
[1693561776142,0.4883507,26022.0,26021.0,0.77617032]
[1693561776444,0.4753507,26022.0,26021.0,0.77417032]
[1693561776941,0.4753507,26022.0,26021.0,0.35887032]
[1693561777844,0.4753507,26022.0,26021.0,0.47379417]
[1693561778046,0.4753507,26022.0,26021.0,0.2334287]
[1693561779944,0.26905746,26033.0,26029.0,0.3]
[1693561780133,0.30749424,26036.0,26034.0,0.3]
[1693561780333,0.19182662,26038.0,26037.0,0.3]
[1693561780637,0.4153,26046.0,26041.0,0.3]
[1693561780838,0.02,26046.0,26045.0,0.4153]
[1693561781045,0.01919,26050.0,26045.0,0.4353]
[1693561781241,0.00384,26048.0,26047.0,0.4153]
[1693561781448,0.02,26048.0,26047.0,0.4153]
[1693561781742,0.4153,26049.0,26047.0,0.4205674]
[1693561781933,0.4153,26049.0,26048.0,0.11123745]
[1693561782440,0.4353,26049.0,26048.0,0.11123745]
[1693561782738,0.61147485,26050.0,26048.0,0.52653745]
[1693561782944,0.61147485,26050.0,26049.0,0.4153]
[1693561783137,0.61147485,26050.0,26049.0,0.9338478]
[1693561783444,0.61147485,26050.0,26049.0,0.78071952]
[1693561783638,0.63147485,26050.0,26049.0,0.78071952]
[1693561783841,0.63147485,26050.0,26049.0,0.78598692]
[1693561784143,0.53541303,26050.0,26049.0,0.78598692]
[1693561786946,0.53541303,26050.0,26049.0,0.37068692]
[1693561787242,0.53541303,26050.0,26049.0,0.2680727]
[1693561787444,0.53541303,26050.0,26049.0,0.46570429]
[1693561787946,0.53541303,26050.0,26049.0,0.21152432]
[1693561788141,0.53541303,26050.0,26049.0,0.11650485]
[1693561790850,0.51541303,26050.0,26049.0,0.11650485]
[1693561791252,0.53541303,26050.0,26049.0,0.11650485]
[1693561791648,0.12011303,26050.0,26049.0,0.53180485]
[1693561791849,0.12011303,26050.0,26049.0,0.53707509]
[1693561793952,0.12111303,26050.0,26049.0,0.56607509]
[1693561794751,0.12111303,26050.0,26049.0,0.50952671]
[1693561795049,0.12111303,26050.0,26049.0,0.52052671]
[1693561795847,0.12111303,26050.0,26049.0,0.53352671]
[1693561796056,0.12311303,26050.0,26049.0,0.59007509]
[1693561796652,0.0462679,26050.0,26049.0,0.70368797]
[1693561798158,0.0462679,26050.0,26049.0,0.59007509]
[1693561799760,0.0462679,26050.0,26049.0,0.53352671]
[1693561800458,0.0462679,26050.0,26049.0,0.59007509]
[1693561801566,0.0462679,26050.0,26049.0,1.6966575]
[1693561801759,0.0462679,26050.0,26049.0,1.81027038]
[1693561809569,0.0462679,26050.0,26049.0,1.80989364]
[1693561809772,0.0462679,26050.0,26049.0,1.6966575]
[1693561810183,0.0462679,26050.0,26049.0,1.69664255]
[1693561811674,0.0462679,26050.0,26049.0,1.80993163]
[1693561812071,0.0462679,26050.0,26049.0,1.69664255]
[1693561812882,0.15387583,26052.0,26050.0,0.06978326]
[1693561813077,0.15387583,26052.0,26051.0,1.63310491]
[1693561813284,0.00057583,26052.0,26051.0,1.63310491]
[1693561813470,0.02057583,26052.0,26051.0,1.63310491]
[1693561813870,0.00057583,26052.0,26051.0,1.64364255]
[1693561814080,0.0680285,26054.0,26051.0,1.5324051]
[1693561814275,0.0880285,26054.0,26053.0,0.4153]
[1693561814576,0.1080285,26054.0,26053.0,0.52865713]
[1693561814776,0.1080285,26054.0,26053.0,0.52653745]
[1693561814984,0.0880285,26054.0,26053.0,0.53707509]
[1693561815182,0.0880285,26054.0,26053.0,0.65043222]
[1693561815683,0.05132281,26054.0,26053.0,0.65043222]
[1693561815884,0.06632281,26054.0,26053.0,0.65143222]
[1693561816182,0.06632281,26054.0,26053.0,0.53807509]
[1693561816379,0.05132281,26054.0,26053.0,0.53707509]
[1693561816582,0.05132281,26054.0,26053.0,0.54007509]
[1693561816771,0.1481954,26055.0,26053.0,0.42883764]
[1693561816970,0.1481954,26055.0,26054.0,0.64524358]
[1693561817184,0.1481954,26055.0,26054.0,0.65051382]
[1693561817883,0.1491954,26055.0,26054.0,0.65051382]
[1693561818079,0.1491954,26055.0,26054.0,0.53707509]
[1693561818685,0.1611954,26055.0,26054.0,0.53807509]
[1693561819079,0.1701954,26055.0,26054.0,0.53807509]
[1693561820172,0.20095233,26055.0,26054.0,0.53807509]
[1693561820375,0.05275693,26055.0,26054.0,1.89858478]
[1693561820786,0.1508,26059.0,26056.0,0.4153]
[1693561820972,0.1508,26059.0,26055.0,0.15151677]
[1693561821182,0.4153,26058.0,26057.0,0.42583764]
[1693561821381,0.4353,26058.0,26057.0,0.48052671]
[1693561821581,0.02,26058.0,26057.0,0.42583764]
[1693561821779,0.5661,26059.0,26057.0,0.42583764]
[1693561821984,0.61712115,26059.0,26058.0,0.4153]
[1693561822184,0.61712115,26059.0,26058.0,0.42583764]
[1693561822388,0.18182115,26059.0,26058.0,0.48052671]
[1693561822883,0.18182115,26059.0,26058.0,0.53707509]
[1693561823281,0.23987746,26059.0,26058.0,0.94271197]
[1693561824079,0.23987746,26059.0,26058.0,0.7911952]
[1693561824984,0.23987746,26059.0,26058.0,0.78564682]
[1693561825183,0.23987746,26059.0,26058.0,0.97735986]
[1693561825586,0.23987746,26059.0,26058.0,0.98990824]
[1693561826185,0.23987746,26059.0,26058.0,0.7981952]
[1693561826887,0.23987746,26059.0,26058.0,0.98874006]
[1693561827092,0.23987746,26059.0,26058.0,1.00074006]
[1693561827688,0.23987746,26059.0,26058.0,0.94419168]
[1693561827889,0.23987746,26059.0,26058.0,0.87550261]
[1693561827890,0.25987746,26059.0,26058.0,0.87550261]
[1693561828393,0.25987746,26059.0,26058.0,0.87750261]
[1693561828795,0.25987746,26059.0,26058.0,0.93219168]
[1693561828995,0.25987746,26059.0,26058.0,0.87750261]
[1693561829693,0.65517746,26059.0,26058.0,0.45166497]
[1693561829996,0.67517746,26059.0,26058.0,0.45166497]
[1693561830396,0.67517746,26059.0,26058.0,0.50635404]
[1693561830605,0.67517746,26059.0,26058.0,0.45166497]
[1693561833788,0.67517746,26059.0,26058.0,0.26112011]
[1693561834893,0.67517746,26059.0,26058.0,0.31580918]
[1693561835195,0.67517746,26059.0,26058.0,0.26112011]
[1693561836893,0.25987746,26059.0,26058.0,0.67642011]
[1693561837492,0.23987746,26059.0,26058.0,0.67642011]
[1693561837884,0.23987746,26059.0,26058.0,0.73110918]
[1693561838091,0.23987746,26059.0,26058.0,0.78765756]
[1693561839094,0.23987746,26059.0,26058.0,0.64786699]
[1693561839696,0.23987746,26059.0,26058.0,0.59131861]
[1693561839895,0.23987746,26059.0,26058.0,0.66786699]
[1693561840205,0.23987746,26059.0,26058.0,0.49698907]
[1693561840391,0.23987746,26059.0,26058.0,0.4223]
[1693561840698,0.23987746,26059.0,26058.0,0.49852074]